fUST/lending_fUST_20241117
["ID","MTS","AMOUNT","RATE_DAILY","PERIOD"]
[342403424,1731797447053,-500.0,0.00013698,2]
[342403425,1731797447062,-500.0,0.00013698,2]
[342403426,1731797447071,-500.0,0.00013698,2]
[342403427,1731797447080,-500.0,0.00013698,2]
[342403428,1731797447091,-500.0,0.00013698,2]
[342403429,1731797447101,-500.0,0.00013698,2]
[342403430,1731797447110,-180.0,0.00013698,2]
[342403431,1731797447120,-500.0,0.00013698,2]
[342403432,1731797447131,-500.0,0.00013698,2]
[342403433,1731797447141,-500.0,0.00013698,2]
[342403434,1731797447150,-162.9718877,0.00013698,2]
[342403435,1731797447159,-500.0,0.00013698,2]
[342403436,1731797447169,-500.0,0.00013698,2]
[342403437,1731797447180,-500.0,0.00013698,2]
[342403438,1731797447189,-500.0,0.00013698,2]
[342403439,1731797447198,-500.0,0.00013698,2]
[342403440,1731797447208,-500.0,0.00013698,2]
[342403441,1731797447216,-500.0,0.00013698,2]
[342403442,1731797447226,-500.0,0.00013698,2]
[342403443,1731797447235,-500.0,0.00013698,2]
[342403444,1731797447245,-337.30178525,0.00013698,2]
[342403445,1731797447254,-500.0,0.00013698,2]
[342403446,1731797447264,-500.0,0.00013698,2]
[342403447,1731797447273,-500.0,0.00013698,2]
[342403448,1731797447282,-500.0,0.00013698,2]
[342403449,1731797447291,-500.0,0.00013698,2]
[342403450,1731797447302,-500.0,0.00013698,2]
[342403451,1731797447311,-500.0,0.00013698,2]
[342403452,1731797447320,-500.0,0.00013698,2]
[342403453,1731797447329,-500.0,0.00013698,2]
[342403454,1731797447338,-210.79975014,0.00013698,2]
[342403455,1731797447348,-180.479173,0.00013698,2]
[342403456,1731797447357,-180.479173,0.00013698,2]
[342403457,1731797447367,-387.87693,0.00013698,2]
[342403458,1731797447377,-387.87693,0.00013698,2]
[342403459,1731797447387,-387.87693,0.00013698,2]
[342403460,1731797447395,-387.87693,0.00013698,2]
[342403461,1731797447404,-387.87693,0.00013698,2]
[342403462,1731797447414,-387.87693,0.00013698,2]
[342403463,1731797447423,-387.87693,0.00013698,2]
[342403464,1731797447432,-387.876923,0.00013698,2]
[342403465,1731797447442,-151.0,0.00013698,2]
[342403466,1731797447451,-151.0,0.00013698,2]
[342403467,1731797447460,-269.99879389,0.00013698,2]
[342403468,1731797447469,-188.71348741,0.00013698,2]
[342403469,1731797447479,-500.0,0.00013698,2]
[342403470,1731797447488,-750.0,0.00013698,2]
[342403471,1731797447498,-750.0,0.00013698,2]
[342403472,1731797447507,-154.00316045,0.00013698,2]
[342403473,1731797447516,-151.0,0.00013698,2]
[342403474,1731797447525,-906.791987,0.00013698,2]
[342403475,1731797447534,-906.791987,0.00013698,2]
[342403476,1731797447543,-1976.60823,0.00013698,2]
[342403477,1731797447552,-1976.60823,0.00013698,2]
[342403478,1731797447561,-4517.574975,0.00013698,2]
[342403479,1731797447570,-4517.574975,0.00013698,2]
[342403480,1731797447579,-151.0,0.00013698,2]
[342403481,1731797447588,-151.0,0.00013698,2]
[342403482,1731797447598,-151.0,0.00013698,2]
[342403483,1731797447607,-3467.247866,0.00013698,2]
[342403484,1731797447616,-3467.247866,0.00013698,2]
[342403485,1731797447627,-3772.124022,0.00013698,2]
[342403486,1731797447636,-3772.124022,0.00013698,2]
[342403487,1731797447645,-151.0,0.00013698,2]
[342403488,1731797447654,-500.0,0.00013698,2]
[342403489,1731797447663,-151.0,0.00013698,2]
[342403490,1731797447673,-1241.34,0.00013698,4]
[342403491,1731797447682,-151.0,0.00013698,2]
[342403492,1731797447691,-151.0,0.00013698,2]
[342403493,1731797447700,-634.999689,0.00013698,2]
[342403494,1731797447709,-634.999689,0.00013698,2]
[342403495,1731797447719,-191.78755,0.00013698,2]
[342403496,1731797447728,-191.78755,0.00013698,2]
[342403497,1731797447737,-151.0,0.00013698,2]
[342403498,1731797447746,-2217.026986,0.00013698,2]
[342403499,1731797447755,-2217.026986,0.00013698,2]
[342403500,1731797447764,-151.0,0.00013698,2]
[342403501,1731797447773,-151.0,0.00013698,2]
[342403502,1731797447782,-4259.375916,0.00013698,2]
[342403503,1731797447791,-151.0,0.00013698,2]
[342403504,1731797447800,-4259.375916,0.00013698,2]
[342403505,1731797447810,-167.387114,0.00013698,2]
[342403506,1731797447819,-714.750118,0.00013698,2]
[342403507,1731797447828,-714.750118,0.00013698,2]
[342403508,1731797447839,-11998.86,0.00013698,2]
[342403509,1731797447848,-256.12228,0.00013698,2]
[342403510,1731797447857,-256.12228,0.00013698,2]
[342403511,1731797447866,-151.0,0.00013698,2]
[342403512,1731797447878,-151.0,0.00013698,2]
[342403513,1731797447888,-151.0,0.00013698,2]
[342403514,1731797447898,-151.0,0.00013698,2]
[342403515,1731797447907,-151.0,0.00013698,2]
[342403516,1731797447917,-956.936194,0.00013698,2]
[342403517,1731797447927,-956.936194,0.00013698,2]
[342403518,1731797447936,-500.0,0.00013699,2]
[342403519,1731797447946,-151.0,0.00013699,2]
[342403520,1731797447957,-151.0,0.00013699,2]
[342403521,1731797447966,-151.0,0.00013699,2]
[342403522,1731797447976,-151.0,0.00013699,2]
[342403523,1731797447986,-151.0,0.00013699,2]
[342403524,1731797447995,-151.0,0.00013699,2]
[342403525,1731797448005,-151.0,0.00013699,2]
[342403526,1731797448015,-151.0,0.00013699,2]
[342403527,1731797448025,-151.0,0.00013699,2]
[342403528,1731797448035,-151.0,0.00013699,2]
[342403529,1731797448045,-151.0,0.00013699,2]
[342403530,1731797448055,-260.238351,0.00013699,2]
[342403531,1731797448065,-151.0,0.00013699,2]
[342403532,1731797448074,-151.0,0.00013699,2]
[342403533,1731797448084,-151.0,0.00013699,2]
[342403534,1731797448093,-151.0,0.00013699,2]
[342403535,1731797448103,-151.0,0.00013699,2]
[342403536,1731797448113,-151.0,0.00013699,2]
[342403537,1731797448127,-157.705127,0.00013699,2]
[342403538,1731797448140,-151.0,0.00013699,2]
[342403539,1731797448151,-151.168169,0.00013699,2]
[342403540,1731797448160,-23888.166481,0.00013699,2]
[342403541,1731797448171,-2766.7551278,0.00013699,2]
[342403542,1731797448181,-2706.762453,0.00013699,2]
[342403543,1731797448191,-27325.1672209,0.00013699,2]
[342403544,1731797448201,-195.512312,0.00013699,2]
[342403545,1731797448211,-195.512312,0.00013699,2]
[342403546,1731797448222,-195.512312,0.00013699,2]
[342403547,1731797448232,-195.512312,0.00013699,2]
[342403548,1731797448242,-606.69706075,0.00013699,2]
[342403549,1731797448252,-178.27425134,0.00013699,2]
[342403550,1731797448262,-500.0,0.00013699,2]
[342403551,1731797448271,-500.0,0.00013699,2]
[342403552,1731797448281,-500.0,0.00013699,2]
[342403553,1731797448291,-500.0,0.00013699,2]
[342403554,1731797448301,-500.0,0.00013699,2]
[342403555,1731797448310,-500.0,0.00013699,2]
[342403556,1731797448320,-500.0,0.00013699,2]
[342403557,1731797448329,-500.0,0.00013699,2]
[342403558,1731797448339,-500.0,0.00013699,2]
[342403559,1731797448349,-500.0,0.00013699,2]
[342403560,1731797448359,-500.0,0.00013699,2]
[342403561,1731797448371,-500.0,0.00013699,2]
[342403562,1731797448381,-500.0,0.00013699,2]
[342403563,1731797448391,-500.0,0.00013699,2]
[342403564,1731797448402,-500.0,0.00013699,2]
[342403565,1731797448413,-500.0,0.00013699,2]
[342403566,1731797448423,-305.82244442,0.00013699,2]
[342403567,1731797448433,-500.0,0.00013699,2]
[342403568,1731797448444,-508.02797875,0.00013699,2]
[342403569,1731797448454,-320.3256421,0.00013699,2]
[342403570,1731797448464,-500.0,0.00013699,2]
[342403571,1731797448473,-500.0,0.00013699,2]
[342403572,1731797448483,-258.65413323,0.00013699,2]
[342403573,1731797448493,-500.0,0.00013699,2]
[342403574,1731797448503,-500.0,0.00013699,2]
[342403575,1731797448513,-500.0,0.00013699,2]
[342403576,1731797448522,-500.0,0.00013699,2]
[342403577,1731797448532,-500.0,0.00013699,2]
[342403578,1731797448541,-500.0,0.00013699,2]
[342403579,1731797448551,-500.0,0.00013699,2]
[342403580,1731797448561,-500.0,0.00013699,2]
[342403581,1731797448571,-500.0,0.00013699,2]
[342403582,1731797448580,-254.79603891,0.00013699,2]
[342403583,1731797448589,-500.0,0.00013699,2]
[342403584,1731797448599,-500.0,0.00013699,2]
[342403585,1731797448609,-500.0,0.00013699,2]
[342403586,1731797448621,-500.0,0.00013699,2]
[342403587,1731797448631,-500.0,0.00013699,2]
[342403588,1731797448641,-198.64395414,0.00013699,2]
[342403589,1731797448651,-500.0,0.00013699,2]
[342403590,1731797448661,-500.0,0.00013699,2]
[342403591,1731797448671,-500.0,0.00013699,2]
[342403592,1731797448681,-500.0,0.00013699,2]
[342403593,1731797448691,-500.0,0.00013699,2]
[342403594,1731797448701,-300.0,0.00013699,2]
[342403595,1731797448712,-500.0,0.00013699,2]
[342403596,1731797448722,-500.0,0.00013699,2]
[342403597,1731797448732,-500.0,0.00013699,2]
[342403598,1731797448742,-390.56464139,0.00013699,2]
[342403599,1731797448752,-500.0,0.00013699,2]
[342403600,1731797448763,-500.0,0.00013699,2]
[342403601,1731797448773,-500.0,0.00013699,2]
[342403602,1731797448783,-500.0,0.00013699,2]
[342403603,1731797448793,-500.0,0.00013699,2]
[342403604,1731797448804,-500.0,0.00013699,2]
[342403605,1731797448814,-500.0,0.00013699,2]
[342403606,1731797448824,-500.0,0.00013699,2]
[342403607,1731797448835,-500.0,0.00013699,2]
[342403608,1731797448845,-500.0,0.00013699,2]
[342403609,1731797448855,-500.0,0.00013699,2]
[342403610,1731797448865,-500.0,0.00013699,2]
[342403611,1731797448879,-500.0,0.00013699,2]
[342403612,1731797448889,-500.0,0.00013699,2]
[342403613,1731797448899,-500.0,0.00013699,2]
[342403614,1731797448909,-500.0,0.00013699,2]
[342403615,1731797448919,-500.0,0.00013699,2]
[342403616,1731797448928,-529.80067803,0.00013699,2]
[342403617,1731797448938,-500.0,0.00013699,2]
[342403618,1731797448948,-622.33583105,0.00013699,2]
[342403619,1731797448958,-500.0,0.00013699,2]
[342403620,1731797448968,-182.69144173,0.00013699,2]
[342403621,1731797448979,-500.0,0.00013699,2]
[342403622,1731797448988,-500.0,0.00013699,2]
[342403623,1731797448998,-500.0,0.00013699,2]
[342403624,1731797449008,-500.0,0.00013699,2]
[342403625,1731797449017,-500.0,0.00013699,2]
[342403626,1731797449027,-500.0,0.00013699,2]
[342403627,1731797449037,-500.0,0.00013699,2]
[342403628,1731797449047,-500.0,0.00013699,2]
[342403629,1731797449057,-500.0,0.00013699,2]
[342403630,1731797449067,-500.0,0.00013699,2]
[342403631,1731797449077,-500.0,0.00013699,2]
[342403632,1731797449086,-500.0,0.00013699,2]
[342403633,1731797449096,-500.0,0.00013699,2]
[342403634,1731797449106,-500.0,0.00013699,2]
[342403635,1731797449116,-500.0,0.00013699,2]
[342403636,1731797449128,-500.0,0.00013699,2]
[342403637,1731797449143,-500.0,0.00013699,2]
[342403638,1731797449152,-500.0,0.00013699,2]
[342403639,1731797449162,-500.0,0.00013699,2]
[342403640,1731797449172,-500.0,0.00013699,2]
[342403641,1731797449182,-500.0,0.00013699,2]
[342403642,1731797449192,-500.0,0.00013699,2]
[342403643,1731797449202,-500.0,0.00013699,2]
[342403644,1731797449213,-500.0,0.00013699,2]
[342403645,1731797449223,-500.0,0.00013699,2]
[342403646,1731797449233,-500.0,0.00013699,2]
[342403647,1731797449243,-500.0,0.00013699,2]
[342403648,1731797449254,-500.0,0.00013699,2]
[342403649,1731797449264,-499.40965542,0.00013699,2]
[342403650,1731797449274,-500.0,0.00013699,2]
[342403651,1731797449285,-500.0,0.00013699,2]
[342403652,1731797449295,-500.0,0.00013699,2]
[342403653,1731797449305,-500.0,0.00013699,2]
[342403654,1731797449315,-500.0,0.00013699,2]
[342403655,1731797449325,-500.0,0.00013699,2]
[342403656,1731797449335,-500.0,0.00013699,2]
[342403657,1731797449345,-500.0,0.00013699,2]
[342403658,1731797449355,-500.0,0.00013699,2]
[342403659,1731797449365,-500.0,0.00013699,2]
[342403660,1731797449379,-300.0,0.00013699,2]
[342403661,1731797449389,-500.0,0.00013699,2]
[342403662,1731797449399,-500.0,0.00013699,2]
[342403663,1731797449409,-500.0,0.00013699,2]
[342403664,1731797449420,-500.0,0.00013699,2]
[342403665,1731797449430,-589.15964096,0.00013699,2]
[342403666,1731797449440,-589.15964096,0.00013699,2]
[342403667,1731797449450,-180.479173,0.00013699,2]
[342403668,1731797449460,-180.479173,0.00013699,2]
[342403669,1731797449470,-151.0,0.00013699,2]
[342403670,1731797449480,-906.791987,0.00013699,2]
[342403671,1731797449490,-906.791987,0.00013699,2]
[342403672,1731797449500,-1976.60823,0.00013699,2]
[342403673,1731797449510,-1976.60823,0.00013699,2]
[342403674,1731797449519,-4517.574975,0.00013699,2]
[342403675,1731797449529,-4517.574975,0.00013699,2]
[342403676,1731797449540,-1193.515503,0.00013699,2]
[342403677,1731797449551,-1193.515503,0.00013699,2]
[342403678,1731797449562,-151.0,0.00013699,2]
[342403679,1731797449573,-151.0,0.00013699,2]
[342403680,1731797449583,-151.0,0.00013699,2]
[342403681,1731797449593,-3467.247866,0.00013699,2]
[342403682,1731797449603,-3467.247866,0.00013699,2]
[342403683,1731797449613,-3772.124022,0.00013699,2]
[342403684,1731797449626,-3772.124022,0.00013699,2]
[342403685,1731797449635,-151.0,0.00013699,2]
[342403686,1731797449645,-151.0,0.00013699,2]
[342403687,1731797449655,-151.0,0.00013699,2]
[342403688,1731797449666,-151.0,0.00013699,2]
[342403689,1731797449675,-634.999689,0.00013699,2]
[342403690,1731797449685,-634.999689,0.00013699,2]
[342403691,1731797449694,-151.0,0.00013699,2]
[342403692,1731797449704,-191.78755,0.00013699,2]
[342403693,1731797449714,-191.78755,0.00013699,2]
[342403694,1731797449724,-151.0,0.00013699,2]
[342403695,1731797449734,-2217.026986,0.00013699,2]
[342403696,1731797449744,-2217.026986,0.00013699,2]
[342403697,1731797449754,-151.0,0.00013699,2]
[342403698,1731797449764,-151.0,0.00013699,2]
[342403699,1731797449773,-4259.375916,0.00013699,2]
[342403700,1731797449783,-151.0,0.00013699,2]
[342403701,1731797449792,-4259.375916,0.00013699,2]
[342403702,1731797449807,-714.750118,0.00013699,2]
[342403703,1731797449818,-714.750118,0.00013699,2]
[342403704,1731797449828,-256.12228,0.00013699,2]
[342403705,1731797449838,-256.12228,0.00013699,2]
[342403706,1731797449848,-783.530647,0.00013699,2]
[342403707,1731797449863,-783.530647,0.00013699,2]
[342403708,1731797449874,-151.0,0.00013699,2]
[342403709,1731797449884,-151.0,0.00013699,2]
[342403710,1731797449894,-151.0,0.00013699,2]
[342403711,1731797449904,-151.0,0.00013699,2]
[342403712,1731797449913,-151.0,0.00013699,2]
[342403713,1731797449923,-195.512312,0.00013699,2]
[342403714,1731797449936,-195.512312,0.00013699,2]
[342403715,1731797449946,-956.936194,0.00013699,2]
[342403716,1731797449956,-956.936194,0.00013699,2]
[342403717,1731797449966,-2123.34942687,0.0001372,2]
[342403718,1731797449976,-2000.0,0.0001372,2]
[342403719,1731797449986,-2000.0,0.0001372,2]
[342403720,1731797449996,-157.567138,0.00013725,2]
[342403721,1731797450006,-176.825454,0.00013725,2]
[342403722,1731797450016,-308.119706,0.00013726,2]
[342403723,1731797450026,-171.657385,0.00013792,2]
[342403724,1731797450036,-12281.04978587,0.00013832,2]
[342403725,1731797450045,-500.0,0.00013835,2]
[342403726,1731797450055,-1241.34,0.00013835,4]
[342403727,1731797450066,-183.095,0.00013843,2]
[342403728,1731797450075,-1981.556327,0.00013848,2]
[342403729,1731797450085,-2507.774236,0.00013848,2]
[342403730,1731797450095,-176.825454,0.00013897,2]
[342403731,1731797450104,-157.567138,0.00013954,2]
[342403732,1731797450115,-2500.0,0.00013963,2]
[342403733,1731797450127,-500.0,0.00013972,2]
[342403734,1731797450139,-500.0,0.00013972,2]
[342403735,1731797450149,-180.479173,0.00013972,2]
[342403736,1731797450159,-180.479173,0.00013972,2]
[342403737,1731797450170,-2500.0,0.00013972,2]
[342403738,1731797450180,-518.23898089,0.00013972,2]
[342403739,1731797450190,-1241.34,0.00013972,4]
[342403740,1731797450200,-11998.86,0.00013972,2]
[342403741,1731797450211,-151.0,0.00013972,2]
[342403742,1731797450221,-151.0,0.00013972,2]
[342403743,1731797450406,-195.512312,0.00013972,2]
[342403744,1731797450417,-195.512312,0.00013972,2]
[342403745,1731797450426,-400.0,0.00013973,2]
[342403746,1731797450436,-530.0,0.00013981,2]
[342403747,1731797450445,-1112.0,0.00013981,2]
[342403748,1731797450455,-2386.0,0.00013981,2]
[342403749,1731797450464,-20396.08224271,0.00014,2]
[342403750,1731797450474,-1893.17804492,0.00014,2]
[342403751,1731797450483,-500.0,0.00014,2]
[342403752,1731797450493,-171.657385,0.00014014,2]
[342403753,1731797450503,-1981.556327,0.00014014,2]
[342403754,1731797450512,-2507.774236,0.00014014,2]
[342403755,1731797450521,-263.483793,0.00014015,2]
[342403756,1731797450531,-783.530647,0.00014015,2]
[342403757,1731797450540,-783.530647,0.00014015,2]
[342403758,1731797450549,-176.825454,0.00014069,2]
[342403759,1731797450558,-1241.51387675,0.00014109,4]
[342403760,1731797450567,-267.87405905,0.00014114,2]
[342403761,1731797450577,-1020.18225851,0.00014156,2]
[342403762,1731797450586,-157.567138,0.00014183,2]
[342403763,1731797450596,-3841.53,0.000142,2]
[342403764,1731797450605,-176.825454,0.0001424,2]
[342403765,1731797450614,-500.0,0.00014246,2]
[342403766,1731797450627,-636.73743965,0.00014246,2]
[342403767,1731797450636,-500.0,0.00014246,2]
[342403768,1731797450646,-196.65950391,0.00014246,2]
[342403769,1731797450655,-150.05796941,0.00014246,2]
[342403770,1731797450665,-150.20947211,0.00014246,2]
[342403771,1731797450674,-11998.86,0.00014246,2]
[342403772,1731797450684,-500.0,0.00014246,2]
[342403773,1731797450694,-150.15561797,0.00014246,2]
[342403774,1731797450703,-200.61652115,0.00014246,2]
[342403775,1731797450712,-263.18838554,0.00014246,2]
[342403776,1731797450722,-300.0,0.00014246,2]
[342403777,1731797450731,-500.0,0.00014246,2]
[342403778,1731797450741,-256.12228,0.00014246,2]
[342403779,1731797450750,-256.12228,0.00014246,2]
[342403780,1731797450760,-500.0,0.00014246,2]
[342403781,1731797450769,-500.0,0.00014246,2]
[342403782,1731797450779,-500.0,0.00014246,2]
[342403783,1731797450789,-151.0,0.00014246,2]
[342403784,1731797450799,-151.0,0.00014246,2]
[342403785,1731797450808,-151.0,0.00014246,2]
[342403786,1731797450818,-956.936194,0.00014246,2]
[342403787,1731797450827,-956.936194,0.00014246,2]
[342403788,1731797450836,-1009.49307482,0.00014247,2]
[342403789,1731797450846,-1000.0,0.00014247,2]
[342403790,1731797450856,-1000.0,0.00014247,2]
[342403791,1731797450865,-370.45293187,0.00014247,2]
[342403792,1731797450877,-1000.0,0.00014247,2]
[342403793,1731797450886,-1000.0,0.00014247,2]
[342403794,1731797450895,-503.65464481,0.00014247,2]
[342403795,1731797450905,-1000.0,0.00014247,2]
[342403796,1731797450915,-1000.0,0.00014247,2]
[342403797,1731797450924,-1000.0,0.00014247,2]
[342403798,1731797450934,-418.82209122,0.00014247,2]
[342403799,1731797450943,-1000.0,0.00014247,2]
[342403800,1731797450953,-1000.0,0.00014247,2]
[342403801,1731797450963,-1000.0,0.00014247,2]
[342403802,1731797450972,-1000.0,0.00014247,2]
[342403803,1731797450982,-1000.0,0.00014247,2]
[342403804,1731797450993,-184.74562953,0.00014247,2]
[342403805,1731797451003,-1000.0,0.00014247,2]
[342403806,1731797451013,-1055.14567022,0.00014247,2]
[342403807,1731797451022,-1051.92395208,0.00014247,2]
[342403808,1731797451032,-508.67598485,0.00014247,2]
[342403809,1731797451042,-1000.0,0.00014247,2]
[342403810,1731797451051,-1000.0,0.00014247,2]
[342403811,1731797451061,-1000.0,0.00014247,2]
[342403812,1731797451070,-1193.515503,0.00014247,2]
[342403813,1731797451079,-1193.515503,0.00014247,2]
[342403814,1731797451088,-23888.166481,0.00014384,2]
[342403815,1731797451098,-211.071248,0.00014384,2]
[342403816,1731797451107,-151.0,0.00014384,2]
[342403817,1731797451117,-634.999689,0.00014384,2]
[342403818,1731797451132,-634.999689,0.00014384,2]
[342403819,1731797451141,-191.78755,0.00014384,2]
[342403820,1731797451151,-191.78755,0.00014384,2]
[342403821,1731797451160,-151.0,0.00014384,2]
[342403822,1731797451169,-151.0,0.00014384,2]
[342403823,1731797451179,-151.0,0.00014384,2]
[342403824,1731797451188,-714.750118,0.00014384,2]
[342403825,1731797451198,-714.750118,0.00014384,2]
[342403826,1731797451208,-157.567138,0.00014412,2]
[342403827,1731797451218,-176.825454,0.00014412,2]
[342403828,1731797451228,-1152.0,0.00014483,2]
[342403829,1731797451238,-1152.0,0.00014483,2]
[342403830,1731797451247,-300.000001,0.000145,2]
[342403831,1731797451256,-500.0,0.0001452,2]
[342403832,1731797451265,-500.0,0.0001452,2]
[342403833,1731797451275,-300.0,0.0001452,2]
[342403834,1731797451284,-503.28893559,0.0001452,2]
[342403835,1731797451293,-500.0,0.0001452,2]
[342403836,1731797451303,-767.51621678,0.0001452,2]
[342403837,1731797451312,-500.0,0.0001452,2]
[342403838,1731797451322,-500.0,0.0001452,2]
[342403839,1731797451331,-180.479173,0.0001452,2]
[342403840,1731797451341,-180.479173,0.0001452,2]
[342403841,1731797451350,-151.0,0.0001452,2]
[342403842,1731797451359,-2217.026986,0.0001452,2]
[342403843,1731797451368,-2217.026986,0.0001452,2]
[342403844,1731797451381,-151.0,0.0001452,2]
[342403845,1731797451390,-11998.86,0.0001452,2]
[342403846,1731797451400,-500.0,0.00014794,2]
[342403847,1731797451409,-500.0,0.00014794,2]
[342403848,1731797451418,-214.64718044,0.00014794,2]
[342403849,1731797451428,-513.295442,0.00014794,2]
[342403850,1731797451437,-500.0,0.00014794,2]
[342403851,1731797451446,-500.0,0.00014794,2]
[342403852,1731797451456,-542.39655628,0.00014794,2]
[342403853,1731797451466,-151.0,0.00014794,2]
[342403854,1731797451476,-151.0,0.00014794,2]
[342403855,1731797451485,-151.0,0.00014794,2]
[342403856,1731797451495,-3772.124022,0.00014794,2]
[342403857,1731797451504,-3772.124022,0.00014794,2]
[342403858,1731797451513,-4259.375916,0.00014794,2]
[342403859,1731797451522,-4259.375916,0.00014794,2]
[342403860,1731797451531,-11998.86,0.00014794,2]
[342403861,1731797451540,-154.35648,0.000148,2]
[342403862,1731797451549,-906.791987,0.000148,2]
[342403863,1731797451558,-906.791987,0.000148,2]
[342403864,1731797451568,-1976.60823,0.000148,2]
[342403865,1731797451577,-1976.60823,0.000148,2]
[342403866,1731797451588,-3467.247866,0.000148,2]
[342403867,1731797451598,-3467.247866,0.000148,2]
[342403868,1731797451608,-151.0,0.000148,2]
[342403869,1731797451618,-157.985187,0.000148,2]
[342403870,1731797451631,-195.512312,0.000148,2]
[342403871,1731797451640,-195.512312,0.000148,2]
[342403872,1731797451649,-18337.66216989,0.000148,2]
[342403873,1731797451659,-4517.574975,0.00014878,2]
[342403874,1731797451669,-4517.574975,0.00014878,2]
[342403875,1731797451678,-1978.936,0.00014878,2]
[342403876,1731797451688,-151.0,0.00014878,2]
[342403877,1731797451698,-603.19162022,0.00014889,2]
[342403878,1731797451708,-783.530647,0.00014889,2]
[342403879,1731797451719,-783.530647,0.00014889,2]
[342403880,1731797451729,-1820.27208762,0.000149,5]
[342403881,1731797451739,-561.89503814,0.000149,2]
[342403882,1731797451749,-426.39223742,0.000149,2]
[342403883,1731797451760,-426.39223742,0.000149,2]
[342403884,1731797451770,-426.39223742,0.000149,2]
[342403885,1731797451781,-20000.0,0.0001499,2]
[342403886,1731797451791,-256.12228,0.0001499,2]
[342403887,1731797451801,-256.12228,0.0001499,2]
[342403888,1731797451811,-1000.0,0.0001499,2]
[342403889,1731797451820,-821.135649,0.0001499,2]
[342403890,1731797451830,-151.0,0.0001499,2]
[342403891,1731797451840,-151.0,0.0001499,2]
[342403892,1731797451851,-151.0,0.0001499,2]
[342403893,1731797451860,-956.936194,0.0001499,2]
[342403894,1731797451871,-956.936194,0.0001499,2]
[342403895,1731797451883,-7068.01330155,0.00015,2]
[342403896,1731797451894,-272.94065377,0.00015,2]
[342403897,1731797451904,-357.74676665,0.00015,2]
[342403898,1731797451914,-8438.04760927,0.00015,2]
[342403899,1731797451923,-1840.63327493,0.00015,2]
[342403900,1731797451933,-14000.0,0.00015,4]
[342403901,1731797451943,-436.14943866,0.00015,2]
[342403902,1731797451953,-376.46845278,0.00015,7]
[342403903,1731797451962,-180.479173,0.00015,2]
[342403904,1731797451972,-180.479173,0.00015,2]
[342403905,1731797451983,-502.75,0.00015,3]
[342403906,1731797451992,-500.0,0.00015,3]
[342403907,1731797452002,-4357.41148616,0.00015,2]
[342403908,1731797452012,-500.0,0.00015068,2]
[342403909,1731797452022,-206.02506665,0.00015068,2]
[342403910,1731797452031,-500.0,0.00015068,2]
[342403911,1731797452040,-500.0,0.00015068,2]
[342403912,1731797452049,-500.0,0.00015068,2]
[342403913,1731797452059,-1193.515503,0.00015068,2]
[342403914,1731797452068,-1193.515503,0.00015068,2]
[342403915,1731797452077,-151.0,0.00015068,2]
[342403916,1731797452087,-634.999689,0.00015068,2]
[342403917,1731797452096,-634.999689,0.00015068,2]
[342403918,1731797452105,-191.78755,0.00015068,2]
[342403919,1731797452115,-191.78755,0.00015068,2]
[342403920,1731797452130,-151.0,0.00015068,2]
[342403921,1731797452141,-151.0,0.00015068,2]
[342403922,1731797452150,-151.0,0.00015068,2]
[342403923,1731797452160,-714.750118,0.00015068,2]